[Event "The Kvibergspelen 2023"]
[Site "Kviberg Park Hotel & Conference, Krutvagen 2, Gothenburg, Sweden"]
[Date "2023.09.17"]
[Round "7.8"]
[White "Pedersen, Daniel Vesterbaek"]
[Black "Thorn, Eric"]
[Result "1/2-1/2"]
[TimeControl "15 minutes + 5 seconds per move from move one (Round 1 - 4) / 90 minutes + 30 seconds per move from move one (Round 5 - 8)"]
[WhiteTitle "FM"]
[BlackTitle "FM"]
[WhiteFideId "1402161"]
[BlackFideId "1710729"]
[WhiteElo "2163"]
[BlackElo "2390"]

1. e4 {[%clk 01:30:58]} {[%emt 00:00:01]} e5 {[%clk 01:30:51]} {[%emt
00:00:10]} 2. Nf3 {[%clk 01:31:22]} {[%emt 00:00:06]} Nc6 {[%clk 01:31:12]}
{[%emt 00:00:08]} 3. Bb5 {[%clk 01:31:40]} {[%emt 00:00:13]} a6 {[%clk
01:31:26]} {[%emt 00:00:16]} 4. Ba4 {[%clk 01:32:04]} {[%emt 00:00:06]} Bc5
{[%clk 01:31:45]} {[%emt 00:00:10]} 5. c3 {[%clk 01:32:20]} {[%emt 00:00:15]}
Nge7 {[%clk 01:31:33]} {[%emt 00:00:42]} 6. O-O {[%clk 01:11:50]} {[%emt
00:21:00]} Ng6 {[%clk 01:31:25]} {[%emt 00:00:37]} 7. d4 {[%clk 01:10:31]}
{[%emt 00:01:49]} Ba7 {[%clk 01:31:14]} {[%emt 00:00:42]} 8. d5 {[%clk
00:47:33]} {[%emt 00:23:29]} Nb8 {[%clk 01:27:22]} {[%emt 00:04:22]} 9. Bg5
{[%clk 00:43:51]} {[%emt 00:04:10]} f6 {[%clk 01:24:34]} {[%emt 00:03:19]} 10.
Be3 {[%clk 00:43:22]} {[%emt 00:00:59]} Bxe3 {[%clk 01:09:57]} {[%emt
00:15:07]} 11. fxe3 {[%clk 00:43:47]} {[%emt 00:00:05]} b5 {[%clk 01:09:58]}
{[%emt 00:00:29]} 12. Bb3 {[%clk 00:39:40]} {[%emt 00:04:38]} d6 {[%clk
00:55:47]} {[%emt 00:14:40]} 13. a4 {[%clk 00:39:56]} {[%emt 00:00:14]} bxa4
{[%clk 00:55:42]} {[%emt 00:00:35]} 14. Bxa4+ {[%clk 00:40:11]} {[%emt
00:00:14]} Bd7 {[%clk 00:56:05]} {[%emt 00:00:07]} 15. Nbd2 {[%clk 00:33:02]}
{[%emt 00:07:40]} O-O {[%clk 00:52:54]} {[%emt 00:03:38]} 16. b4 {[%clk
00:30:43]} {[%emt 00:02:52]} Qc8 {[%clk 00:45:18]} {[%emt 00:08:05]} 17. Qe2
{[%clk 00:29:30]} {[%emt 00:01:44]} Qb7 {[%clk 00:41:22]} {[%emt 00:04:25]} 18.
Bxd7 {[%clk 00:25:32]} {[%emt 00:04:30]} Nxd7 {[%clk 00:41:47]} {[%emt
00:00:05]} 19. Ra5 {[%clk 00:25:56]} {[%emt 00:00:05]} Ra7 {[%clk 00:36:32]}
{[%emt 00:05:45]} 20. Rfa1 {[%clk 00:25:33]} {[%emt 00:00:53]} Rfa8 {[%clk
00:36:55]} {[%emt 00:00:07]} 21. Ne1 {[%clk 00:20:50]} {[%emt 00:05:13]} Ne7
{[%clk 00:35:52]} {[%emt 00:01:32]} 22. Qg4 {[%clk 00:15:01]} {[%emt 00:06:20]}
Nf8 {[%clk 00:35:56]} {[%emt 00:00:26]} 23. Nd3 {[%clk 00:14:36]} {[%emt
00:00:55]} c6 {[%clk 00:34:35]} {[%emt 00:01:50]} 24. c4 {[%clk 00:11:25]}
{[%emt 00:03:42]} cxd5 {[%clk 00:32:07]} {[%emt 00:02:58]} 25. cxd5 {[%clk
00:06:01]} {[%emt 00:05:53]} Rc8 {[%clk 00:27:18]} {[%emt 00:05:19]} 26. b5
{[%clk 00:03:40]} {[%emt 00:02:53]} Rca8 {[%emt 00:12:34]} 27. bxa6 {[%clk
00:01:22]} {[%emt 00:00:26]} Rxa6 {[%clk 00:17:59]} {[%emt 00:00:05]} 28. Rxa6
{[%clk 00:01:01]} {[%emt 00:00:51]} Rxa6 {[%clk 00:18:24]} {[%emt 00:00:06]} 29.
Rxa6 {[%clk 00:00:39]} {[%emt 00:00:52]} Qxa6 {[%clk 00:18:49]} {[%emt
00:00:04]} 30. Qe2 {[%clk 00:01:07]} {[%emt 00:00:03]} Nd7 {[%clk 00:17:57]}
{[%emt 00:01:22]} 31. Kf2 {[%clk 00:01:14]} {[%emt 00:00:23]} Qa2 {[%clk
00:12:20]} {[%emt 00:06:06]} 32. g4 {[%clk 00:01:35]} {[%emt 00:00:10]} Ng6
{[%clk 00:08:45]} {[%emt 00:04:04]} 33. Nb4 {[%clk 00:01:54]} {[%emt 00:00:12]}
Qb2 {[%clk 00:08:08]} {[%emt 00:01:07]} 34. Nd3 {[%clk 00:02:23]} {[%emt
00:00:01]} Qc3 {[%clk 00:06:48]} {[%emt 00:01:50]} 35. Nb1 {[%clk 00:02:52]}
Qc4 {[%clk 00:05:36]} {[%emt 00:01:41]} 36. Nd2 {[%clk 00:03:21]} {[%emt
00:00:03]} Qc2 {[%clk 00:04:23]} {[%emt 00:01:42]} 37. Nb4 {[%clk 00:03:42]}
{[%emt 00:00:09]} Qb2 {[%clk 00:04:02]} {[%emt 00:00:50]} 38. Nd3 {[%clk
00:04:11]} {[%emt 00:00:02]} Qa1 {[%clk 00:04:19]} {[%emt 00:00:13]} 39. Qe1
{[%clk 00:04:02]} {[%emt 00:00:39]} Qc3 {[%clk 00:03:48]} {[%emt 00:01:00]} 40.
Ke2 {[%clk 00:03:53]} {[%emt 00:00:40]} Nc5 {[%clk 00:03:13]} {[%emt 00:01:05]}
41. Nxc5 {[%clk 00:03:17]} {[%emt 00:01:06]} Qxc5 {[%clk 00:03:33]} {[%emt
00:00:10]} 42. Qb1 {[%clk 00:03:09]} {[%emt 00:00:37]} h6 {[%clk 00:01:51]}
{[%emt 00:02:13]} 43. h3 {[%clk 00:03:38]} Kh7 {[%clk 00:02:05]} {[%emt
00:00:17]} 44. Qe1 {[%clk 00:02:54]} {[%emt 00:01:13]} Qb5+ {[%clk 00:02:07]}
{[%emt 00:00:28]} 45. Kf3 {[%clk 00:02:53]} {[%emt 00:00:31]} Qd3 {[%clk
00:02:10]} {[%emt 00:00:26]} 46. Qe2 {[%clk 00:03:22]} {[%emt 00:00:02]} Qc2
{[%clk 00:01:35]} {[%emt 00:01:04]} 47. Kg3 {[%clk 00:02:39]} {[%emt 00:01:14]}
Qc1 {[%clk 00:01:18]} {[%emt 00:00:47]} 48. Nc4 {[%clk 00:02:26]} {[%emt
00:00:43]} Qg1+ {[%clk 00:00:48]} {[%emt 00:01:00]} 49. Qg2 {[%clk 00:02:54]}
{[%emt 00:00:02]} Qe1+ {[%clk 00:01:12]} {[%emt 00:00:05]} 50. Qf2 {[%clk
00:03:12]} {[%emt 00:00:12]} Qb4 {[%clk 00:01:37]} {[%emt 00:00:06]} 51. Qf1
{[%clk 00:02:11]} {[%emt 00:01:31]} Ne7 {[%clk 00:01:02]} {[%emt 00:01:05]} 52.
h4 {[%clk 00:02:29]} {[%emt 00:00:12]} Kg8 {[%clk 00:00:51]} {[%emt 00:00:41]}
53. Kf3 {[%clk 00:01:01]} {[%emt 00:01:57]} g6 {[%clk 00:00:36]} {[%emt
00:00:45]} 54. Qc1 {[%clk 00:00:41]} {[%emt 00:00:51]} Qc5 {[%clk 00:00:34]}
{[%emt 00:00:32]} 55. Qc2 {[%clk 00:00:33]} {[%emt 00:00:39]} f5 {[%clk
00:00:36]} {[%emt 00:00:26]} 56. gxf5 {[%clk 00:01:00]} {[%emt 00:00:03]} gxf5
{[%clk 00:01:01]} {[%emt 00:00:06]} 57. exf5 {[%clk 00:01:20]} {[%emt
00:00:11]} Nxd5 {[%clk 00:01:06]} {[%emt 00:00:24]} 58. Qd3 {[%clk 00:00:50]}
{[%emt 00:01:00]} Nb4 {[%clk 00:00:52]} {[%emt 00:00:43]} 59. Qe4 {[%clk
00:00:38]} {[%emt 00:00:43]} Nc6 {[%clk 00:00:34]} {[%emt 00:00:48]} 60. f6
{[%clk 00:00:35]} {[%emt 00:00:32]} Kf7 {[%clk 00:00:34]} {[%emt 00:00:30]} 61.
Qh7+ {[%clk 00:00:56]} {[%emt 00:00:10]} Kxf6 {[%clk 00:00:56]} {[%emt
00:00:08]} 62. Qxh6+ {[%clk 00:01:24]} {[%emt 00:00:02]} Ke7 {[%clk 00:01:18]}
{[%emt 00:00:07]} 63. Qg7+ {[%clk 00:01:07]} {[%emt 00:00:47]} Ke8 {[%clk
00:00:41]} {[%emt 00:01:06]} 64. Qg8+ {[%clk 00:01:18]} {[%emt 00:00:21]} Kd7
{[%clk 00:00:36]} {[%emt 00:00:36]} 65. Qg4+ {[%clk 00:01:46]} Kd8 {[%clk
00:00:39]} {[%emt 00:00:27]} 66. Qe6 {[%clk 00:01:38]} {[%emt 00:00:38]} Kc7
{[%clk 00:00:39]} {[%emt 00:00:30]} 67. h5 {[%clk 00:01:46]} {[%emt 00:00:23]}
e4+ {[%clk 00:00:33]} {[%emt 00:00:37]} 68. Kxe4 {[%clk 00:01:19]} {[%emt
00:00:57]} Qxh5 {[%clk 00:00:35]} {[%emt 00:00:27]} 69. Qxd6+ {[%clk 00:01:45]}
{[%emt 00:00:04]} Kb7 {[%clk 00:01:01]} {[%emt 00:00:03]} 70. Qd7+ {[%clk
00:01:33]} {[%emt 00:00:44]} Kb8 {[%clk 00:01:30]} {[%emt 00:00:01]} 71. Qd6+
{[%clk 00:01:14]} {[%emt 00:00:48]} Kb7 {[%clk 00:01:58]} {[%emt 00:00:02]} 72.
Qd7+ {[%clk 00:01:41]} {[%emt 00:00:03]} Kb8 {[%clk 00:02:23]} {[%emt
00:00:06]} 73. Qd6+ {[%clk 00:00:48]} {[%emt 00:01:23]} Kb7 {[%clk 00:02:47]}
{[%emt 00:00:05]} 74. Qd7+ {[%clk 00:00:41]} {[%emt 00:00:37]} 1/2-1/2

[Event "The Kvibergspelen 2023"]
[Site "Kviberg Park Hotel & Conference, Krutvagen 2, Gothenburg, Sweden"]
[Date "2023.09.17"]
[Round "7.9"]
[White "Falkevall, Axel"]
[Black "Galvan Cipriani, Viviana"]
[Result "1-0"]
[TimeControl "15 minutes + 5 seconds per move from move one (Round 1 - 4) / 90 minutes + 30 seconds per move from move one (Round 5 - 8)"]
[WhiteTitle "FM"]
[BlackTitle "WFM"]
[WhiteFideId "1735560"]
[BlackFideId "32041144"]
[WhiteElo "2276"]
[BlackElo "2010"]

1. d4 {[%clk 01:30:41]} {[%emt 00:00:18]} Nf6 {[%clk 01:19:06]} {[%emt
00:11:55]} 2. c4 {[%clk 01:31:01]} {[%emt 00:00:10]} e6 {[%clk 01:19:27]}
{[%emt 00:00:09]} 3. Nc3 {[%clk 01:31:18]} {[%emt 00:00:13]} Bb4 {[%clk
01:19:49]} {[%emt 00:00:08]} 4. e3 {[%clk 01:31:42]} {[%emt 00:00:06]} O-O
{[%clk 01:20:10]} {[%emt 00:00:09]} 5. Bd2 {[%clk 01:32:09]} {[%emt 00:00:04]}
d6 {[%clk 01:14:04]} {[%emt 00:06:35]} 6. Nf3 {[%clk 01:28:45]} {[%emt
00:03:54]} Bxc3 {[%clk 01:07:52]} {[%emt 00:06:43]} 7. Bxc3 {[%clk 01:28:58]}
{[%emt 00:00:16]} Ne4 {[%clk 01:08:15]} {[%emt 00:00:07]} 8. Qc2 {[%clk
01:27:18]} {[%emt 00:02:10]} f5 {[%clk 01:05:56]} {[%emt 00:02:49]} 9. Bd3
{[%clk 01:25:16]} {[%emt 00:02:31]} Nxc3 {[%clk 01:05:16]} {[%emt 00:01:11]} 10.
bxc3 {[%clk 01:22:11]} {[%emt 00:03:35]} Nc6 {[%clk 00:58:06]} {[%emt
00:07:40]} 11. e4 {[%clk 01:08:36]} {[%emt 00:14:05]} Qf6 {[%clk 00:56:56]}
{[%emt 00:01:40]} 12. exf5 {[%clk 01:07:46]} {[%emt 00:01:20]} exf5 {[%clk
00:53:45]} {[%emt 00:03:41]} 13. O-O {[%clk 01:06:04]} {[%emt 00:02:13]} Bd7
{[%clk 00:52:14]} {[%emt 00:02:01]} 14. Rfe1 {[%clk 01:04:12]} {[%emt
00:02:21]} b6 {[%clk 00:49:11]} {[%emt 00:03:33]} 15. Re2 {[%clk 00:55:08]}
{[%emt 00:09:35]} Rae8 {[%clk 00:30:56]} {[%emt 00:18:45]} 16. Rae1 {[%clk
00:54:19]} {[%emt 00:01:18]} Rxe2 {[%clk 00:22:15]} {[%emt 00:09:11]} 17. Rxe2
{[%clk 00:51:32]} {[%emt 00:03:17]} Ne7 {[%clk 00:19:26]} {[%emt 00:03:18]} 18.
c5 {[%clk 00:45:44]} {[%emt 00:06:19]} Ng6 {[%clk 00:15:57]} {[%emt 00:04:00]}
19. cxd6 {[%clk 00:42:31]} {[%emt 00:03:42]} Qxd6 {[%clk 00:14:26]} {[%emt
00:02:02]} 20. Bc4+ {[%clk 00:38:07]} {[%emt 00:04:53]} Kh8 {[%clk 00:14:40]}
{[%emt 00:00:15]} 21. Ne5 {[%clk 00:35:44]} {[%emt 00:02:54]} Nf4 {[%clk
00:14:26]} {[%emt 00:00:44]} 22. Re3 {[%clk 00:33:57]} {[%emt 00:02:16]} Be6
{[%clk 00:14:47]} {[%emt 00:00:10]} 23. Bxe6 {[%clk 00:31:06]} {[%emt
00:03:20]} Nxe6 {[%clk 00:11:32]} {[%emt 00:03:46]} 24. Qb3 {[%clk 00:27:33]}
{[%emt 00:04:04]} c5 {[%clk 00:07:03]} {[%emt 00:04:58]} 25. h3 {[%clk
00:18:32]} {[%emt 00:09:31]} cxd4 {[%clk 00:03:53]} {[%emt 00:03:39]} 26. cxd4
{[%clk 00:18:42]} {[%emt 00:00:21]} f4 {[%clk 00:02:26]} {[%emt 00:01:57]} 27.
Re1 {[%clk 00:16:17]} {[%emt 00:02:54]} Nd8 {[%clk 00:02:48]} {[%emt 00:00:09]}
28. Qa4 {[%clk 00:15:17]} {[%emt 00:01:30]} a5 {[%clk 00:00:33]} {[%emt
00:02:45]} 29. Rc1 {[%clk 00:13:19]} {[%emt 00:02:27]} Ne6 {[%clk 00:00:33]}
{[%emt 00:00:30]} 30. Qb3 {[%clk 00:12:43]} {[%emt 00:01:07]} a4 {[%clk
00:00:33]} {[%emt 00:00:31]} 31. Qxa4 {[%clk 00:07:23]} {[%emt 00:05:49]} Qxd4
{[%clk 00:00:32]} {[%emt 00:00:31]} 32. Qxd4 {[%clk 00:06:32]} {[%emt
00:01:22]} Nxd4 {[%clk 00:00:58]} {[%emt 00:00:04]} 33. Rc4 {[%clk 00:06:22]}
{[%emt 00:00:39]} Nb5 {[%clk 00:00:31]} {[%emt 00:00:57]} 34. a4 {[%clk
00:05:05]} {[%emt 00:01:47]} Na7 {[%clk 00:00:32]} {[%emt 00:00:29]} 35. Nd7
{[%clk 00:04:52]} {[%emt 00:00:43]} Rd8 {[%clk 00:00:31]} {[%emt 00:00:31]} 36.
Nxb6 {[%clk 00:04:51]} {[%emt 00:00:31]} g5 {[%clk 00:00:51]} {[%emt 00:00:10]}
37. Rc7 {[%clk 00:03:51]} {[%emt 00:01:30]} Rb8 {[%clk 00:01:17]} {[%emt
00:00:04]} 38. Nd7 {[%clk 00:03:54]} {[%emt 00:00:27]} Ra8 {[%clk 00:00:44]}
{[%emt 00:01:03]} 39. Nf6 {[%clk 00:04:17]} {[%emt 00:00:05]} 1-0

[Event "The Kvibergspelen 2023"]
[Site "Kviberg Park Hotel & Conference, Krutvagen 2, Gothenburg, Sweden"]
[Date "2023.09.17"]
[Round "7.10"]
[White "Hansen, Sune Berg"]
[Black "Reimanis, Ritvars"]
[Result "1-0"]
[TimeControl "15 minutes + 5 seconds per move from move one (Round 1 - 4) / 90 minutes + 30 seconds per move from move one (Round 5 - 8)"]
[WhiteTitle "GM"]
[BlackTitle "IM"]
[WhiteFideId "1400266"]
[BlackFideId "11602988"]
[WhiteElo "2512"]
[BlackElo "2361"]

1. d4 {[%clk 01:29:24]} {[%emt 00:01:31]} Nf6 {[%clk 01:30:51]} {[%emt
00:00:13]} 2. Nf3 {[%clk 01:29:45]} {[%emt 00:00:10]} e6 {[%clk 01:31:08]}
{[%emt 00:00:13]} 3. c4 {[%clk 01:29:12]} {[%emt 00:01:03]} d5 {[%clk
01:31:31]} {[%emt 00:00:06]} 4. g3 {[%clk 01:29:31]} {[%emt 00:00:11]} Nbd7
{[%clk 01:31:23]} {[%emt 00:00:39]} 5. Bg2 {[%clk 01:28:41]} {[%emt 00:01:19]}
dxc4 {[%clk 01:31:48]} {[%emt 00:00:07]} 6. O-O {[%clk 01:28:33]} {[%emt
00:00:37]} Rb8 {[%clk 01:32:12]} {[%emt 00:00:06]} 7. a4 {[%emt 00:00:31]} a6
{[%clk 01:32:35]} {[%emt 00:00:05]} 8. a5 {[%clk 01:28:40]} {[%emt 00:00:25]}
Bd6 {[%clk 01:32:39]} {[%emt 00:00:25]} 9. Nbd2 {[%clk 01:28:31]} {[%emt
00:00:38]} b5 {[%clk 01:33:03]} {[%emt 00:00:07]} 10. axb6 {[%clk 01:28:55]}
{[%emt 00:00:06]} Nxb6 {[%clk 01:33:29]} {[%emt 00:00:04]} 11. Nxc4 {[%clk
01:28:55]} {[%emt 00:00:30]} Nxc4 {[%clk 01:33:53]} {[%emt 00:00:06]} 12. Qa4+
{[%clk 01:29:18]} {[%emt 00:00:06]} Rb5 {[%clk 01:34:13]} {[%emt 00:00:10]} 13.
Qxc4 {[%clk 01:29:44]} {[%emt 00:00:05]} Bb7 {[%clk 01:34:24]} {[%emt
00:00:19]} 14. Ne1 {[%clk 01:24:54]} {[%emt 00:05:20]} Nd5 {[%clk 01:24:33]}
{[%emt 00:10:21]} 15. e4 {[%clk 01:14:03]} {[%emt 00:11:20]} Nb6 {[%clk
01:24:02]} {[%emt 00:01:01]} 16. Qc2 {[%clk 00:59:10]} {[%emt 00:15:23]} O-O
{[%clk 01:08:56]} {[%emt 00:15:36]} 17. Nd3 {[%clk 00:51:07]} {[%emt 00:08:33]}
Qa8 {[%clk 01:07:35]} {[%emt 00:01:51]} 18. Re1 {[%clk 00:47:10]} {[%emt
00:04:28]} Nd7 {[%clk 01:05:15]} {[%emt 00:02:50]} 19. Bd2 {[%clk 00:31:43]}
{[%emt 00:15:57]} c5 {[%clk 00:56:38]} {[%emt 00:09:08]} 20. Bc3 {[%emt
00:08:48]} cxd4 {[%clk 00:45:35]} {[%emt 00:11:29]} 21. Bxd4 {[%clk 00:23:00]}
{[%emt 00:00:58]} Rc8 {[%clk 00:45:03]} {[%emt 00:01:02]} 22. Qe2 {[%clk
00:22:19]} {[%emt 00:01:11]} e5 {[%clk 00:44:12]} {[%emt 00:01:21]} 23. Bc3
{[%clk 00:21:46]} {[%emt 00:01:03]} Re8 {[%clk 00:42:43]} {[%emt 00:01:58]} 24.
Red1 {[%clk 00:19:50]} {[%emt 00:02:26]} Qb8 {[%clk 00:34:37]} {[%emt
00:08:36]} 25. Rd2 {[%clk 00:19:00]} {[%emt 00:01:21]} Nb6 {[%clk 00:34:09]}
{[%emt 00:00:58]} 26. Rc2 {[%clk 00:17:52]} {[%emt 00:01:38]} Qd8 {[%clk
00:31:41]} {[%emt 00:02:58]} 27. Bd2 {[%clk 00:17:11]} {[%emt 00:01:11]} Nd7
{[%clk 00:31:02]} {[%emt 00:01:10]} 28. Be3 {[%clk 00:14:05]} {[%emt 00:03:35]}
Qa8 {[%clk 00:29:39]} {[%emt 00:01:53]} 29. f3 {[%clk 00:13:19]} {[%emt
00:01:15]} Nf8 {[%clk 00:28:50]} {[%emt 00:01:19]} 30. Nc5 {[%clk 00:11:23]}
{[%emt 00:02:27]} Bxc5 {[%clk 00:25:29]} {[%emt 00:03:51]} 31. Bxc5 {[%clk
00:09:25]} {[%emt 00:02:28]} Ne6 {[%clk 00:25:54]} {[%emt 00:00:05]} 32. Qxb5
{[%clk 00:09:12]} {[%emt 00:00:43]} axb5 {[%clk 00:26:17]} {[%emt 00:00:07]} 33.
Rxa8 {[%clk 00:09:37]} {[%emt 00:00:04]} Rxa8 {[%clk 00:26:37]} {[%emt
00:00:11]} 34. Be3 {[%clk 00:09:32]} {[%emt 00:00:34]} Ra4 {[%clk 00:20:12]}
{[%emt 00:06:56]} 35. Kf2 {[%clk 00:08:19]} {[%emt 00:01:42]} Kf8 {[%clk
00:20:21]} {[%emt 00:00:22]} 36. Bf1 {[%clk 00:07:37]} {[%emt 00:01:12]} Rb4
{[%clk 00:20:43]} {[%emt 00:00:07]} 37. Bd2 {[%clk 00:03:22]} {[%emt 00:04:46]}
Rb3 {[%clk 00:20:51]} {[%emt 00:00:22]} 38. Be3 {[%clk 00:03:10]} {[%emt
00:00:41]} Ke7 {[%clk 00:20:28]} {[%emt 00:00:54]} 39. Be2 {[%clk 00:03:32]}
{[%emt 00:00:09]} Kd6 {[%clk 00:13:36]} {[%emt 00:07:23]} 40. Rd2+ {[%clk
00:03:24]} {[%emt 00:00:36]} Kc6 {[%clk 00:12:31]} {[%emt 00:01:34]} 41. Bd1
{[%clk 00:03:40]} {[%emt 00:00:15]} Rb4 {[%clk 00:12:54]} {[%emt 00:00:07]} 42.
b3 {[%clk 00:04:04]} {[%emt 00:00:06]} Kc7 {[%clk 00:08:51]} {[%emt 00:04:33]}
43. Rd3 {[%clk 00:03:33]} {[%emt 00:01:01]} h5 {[%clk 00:08:42]} {[%emt
00:00:39]} 44. h3 {[%clk 00:03:42]} {[%emt 00:00:21]} g6 {[%clk 00:08:50]}
{[%emt 00:00:22]} 45. g4 {[%clk 00:02:51]} {[%emt 00:01:21]} hxg4 {[%clk
00:09:07]} {[%emt 00:00:13]} 46. hxg4 {[%clk 00:03:09]} {[%emt 00:00:11]} f6
{[%clk 00:04:52]} {[%emt 00:04:45]} 47. Ke1 {[%clk 00:02:54]} {[%emt 00:00:46]}
Bc6 {[%clk 00:03:58]} {[%emt 00:01:24]} 48. Kd2 {[%clk 00:03:01]} {[%emt
00:00:23]} f5 {[%clk 00:04:16]} {[%emt 00:00:11]} 49. gxf5 {[%clk 00:03:01]}
{[%emt 00:00:31]} gxf5 {[%clk 00:04:45]} {[%emt 00:00:01]} 50. exf5 {[%clk
00:03:22]} {[%emt 00:00:08]} Nf4 {[%clk 00:04:47]} {[%emt 00:00:29]} 51. f6
{[%clk 00:03:34]} {[%emt 00:00:18]} Ne6 {[%clk 00:03:50]} {[%emt 00:01:28]} 52.
f7 {[%clk 00:02:37]} {[%emt 00:01:25]} Rh4 {[%clk 00:04:05]} {[%emt 00:00:16]}
53. Bg5 {[%clk 00:01:56]} {[%emt 00:01:12]} Rh7 {[%clk 00:02:01]} {[%emt
00:02:33]} 54. Bd8+ {[%clk 00:02:13]} {[%emt 00:00:13]} Kb7 {[%clk 00:01:26]}
{[%emt 00:01:05]} 55. Bf6 {[%clk 00:01:50]} {[%emt 00:00:53]} Rxf7 {[%clk
00:01:07]} {[%emt 00:00:49]} 56. Bxe5 {[%clk 00:02:15]} {[%emt 00:00:05]} Rf5
{[%clk 00:01:09]} {[%emt 00:00:29]} 57. Re3 {[%clk 00:02:26]} {[%emt 00:00:17]}
Bd5 {[%clk 00:01:01]} {[%emt 00:00:39]} 58. Kc3 {[%clk 00:02:25]} {[%emt
00:00:31]} Kc6 {[%clk 00:01:16]} {[%emt 00:00:15]} 59. Kb4 {[%clk 00:02:32]}
{[%emt 00:00:23]} Kb6 {[%clk 00:01:27]} {[%emt 00:00:19]} 60. Bg3 {[%clk
00:02:00]} {[%emt 00:01:01]} Nd4 {[%clk 00:01:26]} {[%emt 00:00:31]} 61. f4
{[%clk 00:02:10]} {[%emt 00:00:21]} Rf7 {[%clk 00:01:18]} {[%emt 00:00:38]} 62.
Rd3 {[%clk 00:01:55]} {[%emt 00:00:45]} Nc6+ {[%clk 00:01:31]} {[%emt
00:00:18]} 63. Kc3 {[%clk 00:02:23]} Be4 {[%clk 00:01:31]} {[%emt 00:00:30]} 64.
Rd6 {[%clk 00:02:24]} {[%emt 00:00:29]} Kc5 {[%emt 00:01:09]} 65. Rh6 {[%clk
00:02:20]} {[%emt 00:00:01]} b4+ {[%clk 00:01:25]} {[%emt 00:00:30]} 66. Kd2
{[%clk 00:02:28]} {[%emt 00:00:21]} Nd4 {[%clk 00:01:16]} {[%emt 00:00:39]} 67.
Rh5+ {[%clk 00:02:02]} {[%emt 00:00:56]} Nf5 {[%clk 00:01:07]} {[%emt
00:00:40]} 68. Bf2+ {[%clk 00:01:50]} {[%emt 00:00:41]} Kc6 {[%clk 00:01:36]}
{[%emt 00:00:02]} 69. Be2 {[%clk 00:01:50]} {[%emt 00:00:29]} Rd7+ {[%clk
00:01:51]} {[%emt 00:00:15]} 70. Ke1 {[%clk 00:02:02]} {[%emt 00:00:18]} Re7
{[%clk 00:02:14]} {[%emt 00:00:07]} 71. Kf1 {[%clk 00:02:09]} {[%emt 00:00:23]}
Rg7 {[%clk 00:02:12]} {[%emt 00:00:32]} 72. Rg5 {[%clk 00:02:15]} {[%emt
00:00:25]} Rh7 {[%clk 00:02:31]} {[%emt 00:00:11]} 73. Bc4 {[%clk 00:01:33]}
{[%emt 00:01:11]} Nd6 {[%emt 00:01:03]} 74. Rc5+ {[%clk 00:01:43]} {[%emt
00:00:01]} Kd7 {[%clk 00:02:39]} {[%emt 00:00:09]} 75. Ba6 {[%clk 00:02:01]}
{[%emt 00:00:12]} Rh3 {[%clk 00:02:49]} {[%emt 00:00:20]} 76. Be2 {[%clk
00:01:50]} {[%emt 00:00:41]} Rxb3 {[%clk 00:02:27]} {[%emt 00:00:52]} 77. Bg4+
{[%clk 00:02:14]} {[%emt 00:00:06]} Ke8 {[%clk 00:02:46]} {[%emt 00:00:11]} 78.
Re5+ {[%clk 00:02:31]} {[%emt 00:00:13]} Kd8 {[%clk 00:02:38]} {[%emt
00:00:39]} 79. Bb6# {[%clk 00:02:51]} {[%emt 00:00:08]} 1-0